bitfinex-derivatives/quotes_SOLF0:USTF0_20250516
["timestamp","ask_amount","ask_price","bid_price","bid_amount"]
[1747355475113,61.9,170.87,170.81,61.72]
[1747355475417,61.9,170.87,170.84,5.852]
[1747355475816,5.8506,170.89,170.84,5.852]
[1747355476014,67.7506,170.89,170.84,5.852]
[1747355476317,5.8506,170.89,170.85,5.8517]
[1747355476509,61.88,170.89,170.81,61.72]
[1747355477411,123.6,170.89,170.77,5.9327]
[1747355477621,123.6,170.89,170.77,3.9187]
[1747355477815,123.6,170.89,170.79,27.09231822]
[1747355478117,18.0493719,170.87,170.79,17.30601822]
[1747355478318,124.77451725,170.86,170.79,17.30601822]
[1747355478514,123.7,170.86,170.79,17.30601822]
[1747355478920,5.8525,170.83,170.79,17.30601822]
[1747355479312,62.02,170.82,170.79,17.30601822]
[1747355479714,62.02,170.82,170.76,1.9104]
[1747355480019,62.02,170.82,170.77,5.8544]
[1747355480221,62.02,170.82,170.76,1.9104]
[1747355480520,62.02,170.82,170.76,7.7651]
[1747355481321,62.02,170.82,170.76,1.9104]
[1747355481517,123.74,170.82,170.73,6.77307955]
[1747355482225,5.8544,170.78,170.72,68.49307955]
[1747355482522,61.96,170.77,170.72,68.49307955]
[1747355482822,67.8145,170.77,170.72,68.49307955]
[1747355483127,61.96,170.77,170.72,68.49307955]
[1747355483917,67.7735,170.8,170.75,5.8551]
[1747355484222,61.92,170.8,170.73,18.0493719]
[1747355484823,61.92,170.8,170.67,8.60327955]
[1747355485322,61.92,170.8,170.67,14.46107955]
[1747355485519,61.92,170.8,170.67,8.60327955]
[1747355485822,5.8569,170.7,170.67,8.60327955]
[1747355486025,62.08,170.7,170.67,6.77307955]
[1747355486621,123.8,170.7,170.67,6.77307955]
[1747355486816,123.8,170.7,170.62,5.8454]
[1747355487018,123.8,170.7,170.62,3.9926]
[1747355487218,123.8,170.7,170.59,6.77307955]
[1747355487620,5.8585,170.66,170.59,6.77307955]
[1747355487816,62.06,170.65,170.59,6.77307955]
[1747355488819,62.06,170.65,170.59,12.63367955]
[1747355489021,62.06,170.65,170.59,5.8606]
[1747355490426,62.06,170.65,170.6,5.8602]
[1747355491029,62.06,170.65,170.58,67.5807]
[1747355491524,62.06,170.65,170.58,61.72]
[1747355492024,62.06,170.65,170.57,1.9915]
[1747355492329,62.06,170.65,170.52,61.74]
[1747355492633,5.8613,170.58,170.52,67.603]
[1747355492822,61.94,170.57,170.52,67.603]
[1747355493129,61.94,170.57,170.52,61.74]
[1747355496732,61.94,170.57,170.49,61.76]
[1747355497231,67.8014,170.57,170.51,5.8634]
[1747355498332,67.8014,170.57,170.52,5.863]
[1747355498532,61.94,170.57,170.49,61.76]
[1747355498939,61.94,170.57,170.53,5.8626]
[1747355499231,61.94,170.57,170.49,61.76]
[1747355499431,5.861,170.58,170.49,61.76]
[1747355499631,67.641,170.58,170.49,61.76]
[1747355500029,61.78,170.62,170.49,61.76]
[1747355500030,5.8573,170.69,170.57,18.07586818]
[1747355500227,5.8573,170.69,170.58,65.4632]
[1747355500428,62.02,170.7,170.64,5.8586]
[1747355500629,62.02,170.7,170.62,61.78]
[1747355501034,62.02,170.7,170.65,5.8583]
[1747355501930,123.8,170.7,170.62,61.78]
[1747355502235,123.8,170.7,170.59,61.78]
[1747355502635,62.1,170.69,170.59,61.78]
[1747355502833,62.1,170.7,170.59,61.78]
[1747355503035,62.12,170.72,170.71,5.8565]
[1747355503231,62.12,170.72,170.66,61.78]
[1747355503839,67.6354,170.75,170.66,61.78]
[1747355504041,62.12,170.74,170.66,61.78]
[1747355504241,62.12,170.74,170.67,1.953]
[1747355505039,62.12,170.74,170.72,5.8561]
[1747355505441,62.12,170.74,170.67,1.953]
[1747355507443,62.12,170.74,170.69,5.8569]
[1747355507645,62.12,170.74,170.67,1.953]
[1747355507943,61.78,170.75,170.73,5.8557]
[1747355508143,61.98,170.74,170.67,1.953]
[1747355508442,61.98,170.74,170.72,5.8562]
[1747355508743,61.98,170.74,170.67,1.953]
[1747355508940,61.76,170.78,170.75,5.8551]
[1747355509135,61.96,170.77,170.71,61.76]
[1747355510644,61.76,170.78,170.71,61.76]
[1747355510832,61.94,170.76,170.71,61.76]
[1747355511037,5.8538,170.79,170.71,61.76]
[1747355511236,61.94,170.77,170.71,61.76]
[1747355512437,61.88,170.79,170.71,79.83586818]
[1747355512645,61.88,170.8,170.77,5.8542]
[1747355512844,61.76,170.84,170.71,79.83586818]
[1747355513045,61.9,170.83,170.71,79.83586818]
[1747355513243,61.92,170.84,170.76,18.07586818]
[1747355513442,61.92,170.84,170.77,67.5947]
[1747355513740,61.92,170.84,170.81,5.8529]
[1747355514044,61.76,170.88,170.81,61.74]
[1747355514238,61.94,170.87,170.83,5.8521]
[1747355514638,61.92,170.86,170.81,61.74]
[1747355515250,61.92,170.89,170.81,61.74]
[1747355515452,506.1,170.98,170.81,61.74]
[1747355515741,61.74,170.97,170.81,61.74]
[1747355515938,61.9,170.96,170.81,61.74]
[1747355516747,61.74,170.97,170.82,61.94]
[1747355516945,61.94,170.96,170.82,61.94]
[1747355517143,61.94,170.96,170.84,18.07586818]
[1747355517347,61.94,170.96,170.85,61.72]
[1747355517649,5.8494,170.92,170.87,5.851]
[1747355517840,67.7494,170.92,170.87,5.851]
[1747355518041,505.96,171.06,170.92,5.8493]
[1747355518251,123.6,171.05,170.92,5.8493]
[1747355518548,61.72,171.05,170.92,5.8493]
[1747355518744,5.8472,170.99,170.92,5.8493]
[1747355518950,61.98,170.98,170.92,5.8493]
[1747355519342,61.98,170.98,170.89,61.72]
[1747355519343,5.8473,170.98,170.89,61.72]
[1747355519652,61.94,170.98,170.89,61.72]
[1747355519946,67.7876,170.98,170.89,61.72]
[1747355520145,61.72,171.01,170.89,61.72]
[1747355520340,61.94,171.0,170.89,61.72]
[1747355520948,5.847,170.99,170.93,5.8489]
[1747355521147,61.92,170.98,170.89,61.72]
[1747355522251,61.9,170.98,170.89,61.72]
[1747355522654,61.9,170.98,170.94,5.8483]
[1747355522844,61.72,171.01,170.93,61.7]
[1747355523044,5.8474,170.98,170.94,61.68]
[1747355523245,61.88,171.0,170.94,61.68]
[1747355523950,61.88,171.0,170.95,5.8482]
[1747355524253,61.88,171.0,170.94,61.68]
[1747355525556,67.7266,171.0,170.94,67.5284]
[1747355525956,61.88,171.0,170.94,61.68]
[1747355526457,61.88,171.0,170.95,5.8482]
[1747355526656,61.7,171.0,170.94,61.68]
[1747355527050,61.7,171.0,170.96,5.8479]
[1747355527353,61.76,171.02,170.94,61.68]
[1747355527652,61.68,171.07,170.95,1.9122]
[1747355527859,61.68,171.08,170.96,1.9548]
[1747355528158,123.48,171.07,170.96,1.9548]
[1747355528748,123.48,171.07,170.97,5.8476]
[1747355529049,5.8459,171.02,170.98,61.68]
[1747355529251,61.68,171.07,170.98,67.5272]
[1747355529457,61.8,171.06,170.98,61.68]
[1747355529658,5.8453,171.04,170.98,61.68]
[1747355529858,61.68,171.07,170.98,61.68]
[1747355530157,67.6047,171.06,170.98,123.48]
[1747355530454,61.76,171.06,170.98,123.48]
[1747355530658,61.8,171.09,171.0,18.07586818]
[1747355531054,61.8,171.09,171.04,5.8449]
[1747355531247,61.78,171.1,171.04,61.76]
[1747355531647,8.44217898,171.17,171.04,61.76]
[1747355531648,8.44217898,171.17,171.08,11.07228906]
[1747355531856,8.44217898,171.17,171.04,67.6]
[1747355531857,8.44217898,171.17,171.12,11.07228906]
[1747355532050,61.94,171.21,171.13,61.74]
[1747355532253,61.74,171.29,171.13,61.74]
[1747355532451,61.96,171.28,171.13,61.74]
[1747355532658,61.92,171.27,171.15,11.07228906]
[1747355532852,5.8378,171.26,171.16,1.9889]
[1747355533156,61.92,171.27,171.17,61.74]
[1747355533656,5.8383,171.25,171.17,67.5807]
[1747355533858,61.74,171.25,171.17,61.74]
[1747355534855,61.74,171.25,171.12,567.3]
[1747355535056,61.74,171.25,171.14,61.74]
[1747355535446,61.74,171.25,171.12,567.12]
[1747355535659,61.74,171.25,171.12,61.72]
[1747355536552,5.8421,171.13,171.12,61.72]
[1747355536752,5.8421,171.13,171.1,1.8371]
[1747355536953,61.9,171.16,171.09,63.6027]
[1747355537662,61.9,171.16,171.09,69.4462]
[1747355537958,61.9,171.16,171.09,63.6027]
[1747355538654,61.72,171.2,171.1,5.843]
[1747355538956,61.72,171.2,171.09,63.6027]
[1747355538957,61.86,171.17,171.11,61.72]
[1747355539153,5.8414,171.16,171.11,61.72]
[1747355539853,61.84,171.17,171.11,61.72]
[1747355540048,61.84,171.21,171.11,123.56]
[1747355540450,61.86,171.23,171.14,17.9765083]
[1747355540659,61.86,171.23,171.15,125.5971]
[1747355540855,67.6987,171.24,171.18,5.8401]
[1747355541058,61.72,171.28,171.15,125.5971]
[1747355541358,61.86,171.27,171.15,125.5971]
[1747355541557,5.838,171.26,171.19,5.84]
[1747355541862,61.72,171.28,171.19,67.54]
[1747355542059,5.8384,171.25,171.19,67.54]
[1747355542261,61.82,171.27,171.2,5.8397]
[1747355542562,5.8378,171.26,171.2,1.9878]
[1747355543461,5.8381,171.25,171.2,1.9878]
[1747355543859,61.8,171.27,171.2,1.9878]
[1747355544052,61.8,171.27,171.19,61.7]
[1747355544253,123.48,171.27,171.19,61.7]
[1747355544549,123.48,171.27,171.16,61.68]
[1747355545256,5.8385,171.24,171.16,61.68]
[1747355545465,5.8385,171.24,171.16,141.3965083]
[1747355545653,61.74,171.23,171.16,61.68]
[1747355546959,5.8393,171.22,171.16,61.68]
[1747355547459,61.74,171.23,171.16,61.68]
[1747355547653,61.76,171.24,171.16,61.68]
[1747355548157,61.74,171.26,171.17,61.74]
[1747355548359,61.74,171.26,171.18,2.0083]
[1747355550363,123.42,171.26,171.15,2.0171]
[1747355550661,123.42,171.26,171.16,61.68]
[1747355551663,61.74,171.26,171.16,79.6565083]
[1747355551965,61.74,171.26,171.16,141.4765083]
[1747355552266,61.68,171.29,171.16,123.5]
[1747355552458,5.8384,171.24,171.18,5.8402]
[1747355552662,61.8,171.28,171.19,1.9111]
[1747355552867,61.8,171.28,171.2,61.68]
[1747355553264,5.8382,171.25,171.2,61.68]
[1747355553565,61.8,171.28,171.2,61.68]
[1747355553866,5.8379,171.26,171.2,67.5197]
[1747355554260,61.8,171.28,171.2,61.68]
[1747355554461,5.8381,171.25,171.2,61.68]
[1747355554963,5.8381,171.25,171.2,67.5198]
[1747355555167,61.72,171.26,171.2,61.68]
[1747355555660,61.72,171.26,171.19,1.9111]
[1747355555869,61.66,171.25,171.14,61.66]
[1747355556261,5.84,171.2,171.14,67.5017]
[1747355556464,67.56,171.2,171.14,67.5017]
[1747355556767,61.72,171.2,171.14,61.66]
[1747355557370,61.72,171.2,171.11,65.5586]
[1747355557870,5.8409,171.17,171.12,5.8422]
[1747355558060,61.72,171.2,171.11,65.5586]
[1747355558473,5.8407,171.18,171.12,5.8422]
[1747355559272,5.8409,171.17,171.12,5.8422]
[1747355559666,61.72,171.24,171.13,17.97293806]
[1747355560271,61.74,171.31,171.17,17.97293806]
[1747355560575,67.6166,171.3,171.18,63.6876]
[1747355560969,67.6166,171.3,171.19,1.8522]
[1747355561174,67.5967,171.29,171.23,5.8385]
[1747355561471,61.76,171.29,171.22,61.74]
[1747355562980,5.8374,171.27,171.22,61.74]
[1747355563177,61.76,171.29,171.22,61.74]
[1747355563684,61.76,171.29,171.23,5.8385]
[1747355563879,61.76,171.29,171.22,61.74]
[1747355564287,5.8372,171.28,171.22,67.579]
[1747355564680,17.97293806,171.37,171.22,61.74]
[1747355564876,61.74,171.39,171.25,17.97293806]
[1747355565079,61.88,171.36,171.26,63.7085]
[1747355565282,61.86,171.35,171.27,1.8512]
[1747355565686,61.86,171.34,171.27,1.8512]
[1747355565886,61.86,171.34,171.28,5.837]
[1747355566185,61.86,171.34,171.27,1.8512]
[1747355566886,61.86,171.34,171.3,5.8361]
[1747355567274,61.88,171.35,171.27,1.8512]
[1747355567474,61.88,171.35,171.31,5.8358]
[1747355568283,61.88,171.35,171.32,5.8356]
[1747355568883,61.88,171.35,171.31,5.8359]
[1747355569082,61.88,171.35,171.3,61.74]
[1747355569475,5.8342,171.37,171.3,61.74]
[1747355569684,61.74,171.36,171.3,61.74]
[1747355570087,61.74,171.39,171.3,61.74]
[1747355570481,61.72,171.42,171.3,61.74]
[1747355570678,61.72,171.42,171.32,17.97293806]
[1747355570883,61.78,171.41,171.32,17.97293806]
[1747355571188,504.5,171.53,171.32,79.73293806]
[1747355571390,123.52,171.52,171.32,79.73293806]
[1747355572690,152.758,171.52,171.3,61.74]
[1747355572889,5.8334,171.39,171.32,5.8356]
[1747355573087,67.6934,171.39,171.32,5.8356]
[1747355573290,61.86,171.39,171.32,5.8356]
[1747355573493,5.834,171.38,171.32,5.8356]
[1747355573686,61.86,171.39,171.29,3.9154]
[1747355573892,61.86,171.39,171.3,61.72]
[1747355574680,61.86,171.39,171.31,5.836]
[1747355575092,61.86,171.39,171.3,61.72]
[1747355575293,5.8346,171.36,171.3,61.72]
[1747355575592,61.86,171.39,171.3,79.69293806]
[1747355575990,61.8,171.4,171.34,5.8347]
[1747355576187,61.8,171.4,171.32,61.7]
[1747355576384,5.8339,171.38,171.32,61.7]
[1747355577391,61.8,171.4,171.32,61.7]
[1747355577793,5.8343,171.37,171.32,61.7]
[1747355577992,61.88,171.36,171.32,61.7]
[1747355579990,61.92,171.44,171.35,11.02743315]
[1747355580192,61.92,171.44,171.37,5.834]
[1747355580384,61.92,171.44,171.36,63.6327]
[1747355580385,5.8325,171.42,171.36,63.6327]
[1747355580586,61.92,171.44,171.36,63.6327]
[1747355580786,123.62,171.44,171.36,63.6327]
[1747355581190,129.4519,171.44,171.38,5.8336]
[1747355581390,62.06,171.43,171.36,63.6327]
[1747355581889,61.7,171.46,171.39,5.833]
[1747355582090,62.04,171.45,171.39,5.833]
[1747355582289,62.04,171.45,171.36,63.6327]
[1747355582290,504.5,171.53,171.36,63.6327]
[1747355582491,123.74,171.52,171.37,1.9462]
[1747355582881,123.74,171.52,171.39,5.833]
[1747355583086,28.60743315,171.51,171.36,63.6327]
[1747355583282,11.02743315,171.5,171.36,61.7]
[1747355583487,28.60743315,171.5,171.32,1.9883]
[1747355583688,28.60743315,171.5,171.33,61.7]
[1747355584093,28.60743315,171.5,171.31,11.02743315]
[1747355584094,28.60743315,171.46,171.3,1.9462]
[1747355584292,17.58,171.44,171.29,61.7]
[1747355584495,5.836,171.32,171.29,61.7]
[1747355584698,62.04,171.32,171.29,61.7]
[1747355584897,62.04,171.32,171.26,63.6883]
[1747355585200,62.04,171.32,171.25,8.61217373]
[1747355585593,62.04,171.32,171.25,1.9462]
[1747355585897,5.837,171.29,171.25,1.9462]
[1747355586100,62.06,171.28,171.25,1.9462]
[1747355587292,62.06,171.28,171.23,61.7]
[1747355589105,61.94,171.28,171.23,61.7]
[1747355589401,61.7,171.32,171.23,61.7]
[1747355589591,61.94,171.31,171.23,61.7]
[1747355590801,5.8368,171.29,171.23,61.7]
[1747355591001,5.8368,171.29,171.23,67.5387]
[1747355592303,5.8368,171.29,171.23,61.7]
[1747355592904,61.94,171.31,171.23,61.7]
[1747355593202,61.94,171.31,171.19,1.9274]
[1747355593802,11.02743315,171.3,171.17,61.94]
[1747355594008,515.46743315,171.3,171.13,65.8507]
[1747355594904,5.8391,171.23,171.13,65.8507]
[1747355595098,123.78,171.22,171.13,65.8507]
[1747355595505,61.94,171.22,171.13,65.8507]
[1747355595803,61.82,171.21,171.13,65.8507]
[1747355596005,61.84,171.21,171.18,5.8404]
[1747355596197,61.84,171.21,171.13,65.8507]
[1747355596701,61.84,171.21,171.13,63.8582]
[1747355596901,123.78,171.21,171.13,63.8582]
[1747355597103,129.6197,171.21,171.13,63.8582]
[1747355597302,123.78,171.21,171.13,63.8582]
[1747355597906,129.6195,171.21,171.14,5.8415]
[1747355598106,61.8,171.2,171.13,63.8582]
[1747355598305,61.86,171.21,171.13,63.8582]
[1747355598509,61.86,171.21,171.18,5.8402]
[1747355598706,61.86,171.21,171.13,63.8582]
[1747355598907,61.86,171.21,171.17,5.8408]
[1747355599106,61.84,171.21,171.13,74.88563315]
[1747355599503,61.84,171.21,171.18,5.8403]
[1747355600909,61.84,171.21,171.19,5.8401]
[1747355601105,61.84,171.21,171.13,74.88563315]
[1747355601308,61.76,171.22,171.13,74.88563315]
[1747355601606,61.74,171.25,171.17,11.02743315]
[1747355601807,61.76,171.26,171.18,63.9191]
[1747355602008,61.76,171.26,171.19,1.8696]
[1747355602610,61.76,171.27,171.24,5.8384]
[1747355603007,61.76,171.27,171.23,5.8387]
[1747355603210,61.76,171.27,171.19,1.8696]
[1747355603606,67.5974,171.27,171.19,1.8696]
[1747355603812,61.76,171.27,171.19,1.8696]
[1747355604410,5.8378,171.26,171.21,5.8394]
[1747355604816,67.5975,171.27,171.22,5.839]
[1747355605001,61.76,171.27,171.19,1.8696]
[1747355605406,5.8385,171.24,171.19,1.8696]
[1747355605915,61.76,171.27,171.19,1.8696]
[1747355606209,61.76,171.27,171.21,5.8393]
[1747355606408,61.76,171.27,171.19,1.8696]
[1747355606713,61.76,171.27,171.22,5.8388]
[1747355607309,61.76,171.27,171.19,1.8696]
[1747355608712,61.76,171.27,171.19,7.7095]
[1747355609412,61.76,171.27,171.2,5.8398]
[1747355609710,61.76,171.27,171.19,1.8696]
[1747355609916,5.8383,171.25,171.19,1.8696]
[1747355610311,5.8383,171.25,171.19,7.7097]
[1747355610518,5.8385,171.24,171.19,1.8696]
[1747355610708,61.58,171.23,171.19,1.8696]
[1747355610908,61.58,171.23,171.19,7.7097]
[1747355611517,61.58,171.23,171.14,61.96]
[1747355612012,5.8394,171.22,171.16,5.8409]
[1747355612311,61.58,171.23,171.14,61.96]
[1747355612502,61.96,171.22,171.14,61.96]
[1747355613004,61.96,171.22,171.13,1.9182]
[1747355613809,5.8413,171.16,171.11,65.9543]
[1747355614110,61.54,171.16,171.11,65.9543]
[1747355614610,67.3814,171.16,171.11,65.9543]
[1747355615012,67.3814,171.16,171.11,71.7971]
[1747355615312,61.54,171.16,171.11,71.7971]
[1747355616014,61.54,171.16,171.12,5.8425]
[1747355616210,61.96,171.18,171.11,65.9543]
[1747355616511,61.48,171.18,171.11,65.9543]
[1747355616710,61.48,171.18,171.15,5.8412]
[1747355618417,61.48,171.18,171.14,5.8417]
[1747355618616,61.48,171.18,171.11,65.9543]
[1747355618915,61.48,171.18,171.11,63.9638]
[1747355619111,61.48,171.18,171.11,2.0038]
[1747355619914,5.8414,171.16,171.11,2.0038]
[1747355620111,61.48,171.18,171.11,2.0038]
[1747355620614,5.8411,171.17,171.11,7.8464]
[1747355620816,61.48,171.18,171.11,7.8464]
[1747355621113,61.48,171.18,171.11,2.0038]
[1747355621613,61.48,171.18,171.12,61.48]
[1747355622006,61.98,171.21,171.12,61.48]
[1747355622215,61.5,171.2,171.12,61.48]
[1747355622415,61.5,171.2,171.17,5.8408]
[1747355622613,61.98,171.21,171.17,5.8408]
[1747355622817,61.5,171.2,171.12,61.48]
[1747355623017,61.5,171.2,171.17,5.8405]
[1747355623312,61.5,171.24,171.12,61.48]
[1747355623517,61.5,171.23,171.14,11.02743315]
[1747355623719,61.5,171.24,171.15,1.8944]
[1747355623913,61.5,171.24,171.16,63.4493]
[1747355624113,61.5,171.24,171.2,5.8395]
[1747355624315,61.5,171.24,171.16,63.4493]
[1747355624716,61.5,171.27,171.16,63.4493]
[1747355624914,61.5,171.25,171.16,63.4493]
[1747355625517,61.5,171.24,171.16,63.4493]
[1747355625715,67.3383,171.25,171.2,5.8394]
[1747355626018,67.3383,171.25,171.16,63.4493]
[1747355626220,67.3383,171.25,171.21,5.8393]
[1747355627114,67.3383,171.25,171.22,5.8391]
[1747355627320,61.5,171.25,171.22,5.8391]
[1747355627522,61.5,171.25,171.16,63.4493]
[1747355628922,5.8355,171.33,171.28,5.8368]
[1747355629116,5.8355,171.33,171.23,126.9114]
[1747355629615,5.8355,171.33,171.28,5.8368]
[1747355629820,61.58,171.32,171.28,5.8368]
[1747355630021,5.8355,171.33,171.28,5.8368]
[1747355630219,61.56,171.32,171.28,5.8368]
[1747355630514,5.8355,171.33,171.24,1.9466]
[1747355630515,61.56,171.37,171.27,61.48]
[1747355630723,123.04,171.37,171.27,123.04]
[1747355631322,123.04,171.37,171.34,5.8348]
[1747355631721,123.04,171.37,171.27,123.04]
[1747355631914,61.48,171.37,171.35,5.8344]
[1747355632114,61.48,171.37,171.27,123.04]
[1747355632420,504.7,171.46,171.3,11.04272452]
[1747355632720,123.28,171.45,171.34,11.04272452]
[1747355632916,123.28,171.45,171.35,63.3808]
[1747355633222,61.8,171.44,171.35,63.3808]
[1747355633716,61.8,171.44,171.41,5.8323]
[1747355633929,61.8,171.44,171.35,125.1808]
[1747355634316,61.48,171.45,171.35,125.1808]
[1747355634616,61.8,171.44,171.35,125.1808]
[1747355634918,18.59550987,171.61,171.38,11.04272452]
[1747355635121,11.04272452,171.59,171.42,11.04272452]
[1747355635316,123.38,171.58,171.43,123.38]
[1747355635516,5.8279,171.55,171.43,123.38]
[1747355635818,123.38,171.58,171.44,1.8453]
[1747355636024,5.8293,171.51,171.44,1.8453]
[1747355636322,61.92,171.5,171.44,1.8453]
[1747355636523,67.7499,171.5,171.43,5.8317]
[1747355636723,61.92,171.5,171.4,61.46]
[1747355637119,5.8313,171.45,171.39,7.8036]
[1747355637421,5.8313,171.45,171.39,1.9704]
[1747355637422,61.96,171.45,171.39,1.9704]
[1747355638312,61.96,171.45,171.39,7.8034]
[1747355638623,61.96,171.45,171.39,1.9704]
[1747355639624,61.96,171.45,171.35,3.8443]
[1747355640023,61.96,171.45,171.33,61.44]
[1747355640226,61.96,171.45,171.3,61.42]
[1747355640424,5.8333,171.4,171.32,5.8354]
[1747355640720,123.28,171.39,171.3,61.42]
[1747355640926,5.8349,171.35,171.29,1.9121]
[1747355641126,61.9,171.34,171.29,1.9121]
[1747355641919,67.735,171.34,171.29,1.9121]
[1747355642126,61.9,171.34,171.25,61.42]
[1747355642321,123.32,171.34,171.25,61.42]
[1747355643825,123.32,171.34,171.29,5.8365]
[1747355644729,123.32,171.34,171.25,61.42]
[1747355644926,11.04272452,171.45,171.26,11.04272452]
[1747355645127,61.42,171.44,171.3,11.04272452]
[1747355645430,61.86,171.43,171.31,127.1236]
[1747355646129,61.86,171.43,171.38,5.8335]
[1747355646334,61.86,171.43,171.36,61.42]
[1747355646932,67.692,171.43,171.36,61.42]
[1747355647334,61.86,171.43,171.36,61.42]
[1747355647533,61.8,171.42,171.36,67.254]
[1747355647733,61.8,171.42,171.36,61.42]
[1747355647929,5.8331,171.4,171.36,61.42]
[1747355648136,61.78,171.42,171.36,61.42]
[1747355648434,67.6124,171.42,171.36,61.42]
[1747355648829,67.6124,171.42,171.33,61.42]
[1747355648830,61.78,171.42,171.33,61.42]
[1747355649529,5.8327,171.41,171.34,5.8347]
[1747355649729,61.78,171.42,171.33,61.42]
[1747355650635,5.8335,171.39,171.33,61.42]
[1747355650843,61.8,171.38,171.33,61.42]
[1747355651132,61.76,171.41,171.33,61.42]
[1747355651531,61.42,171.44,171.35,5.8344]
[1747355651833,61.76,171.43,171.33,61.42]
[1747355652334,5.8344,171.36,171.32,1.9468]
[1747355652539,61.76,171.39,171.32,1.9468]
[1747355652737,61.78,171.38,171.32,1.9468]
[1747355652937,61.78,171.38,171.33,5.8352]
[1747355653334,61.76,171.4,171.32,1.9468]
[1747355653635,61.76,171.45,171.34,11.04272452]
[1747355653836,61.82,171.44,171.35,61.76]
[1747355654337,61.76,171.47,171.35,61.76]
[1747355654540,61.82,171.46,171.35,61.76]
[1747355654941,5.8316,171.45,171.39,5.8332]
[1747355655242,61.74,171.5,171.39,61.74]
[1747355655432,67.61,171.49,171.4,1.8455]
[1747355655637,5.83,171.49,171.4,1.8455]
[1747355655937,61.76,171.48,171.41,1.9451]
[1747355656547,61.76,171.48,171.45,5.8312]
[1747355656750,61.76,171.48,171.41,1.9451]
[1747355657244,61.74,171.5,171.41,1.9451]
[1747355657546,61.72,171.5,171.41,1.9451]
[1747355657748,5.8302,171.49,171.44,5.8315]
[1747355657948,61.74,171.49,171.4,1.8455]
[1747355658148,61.74,171.49,171.39,61.74]
[1747355658746,5.8315,171.45,171.39,67.573]
[1747355658944,67.5315,171.45,171.39,61.74]
[1747355659250,61.7,171.45,171.39,61.74]
[1747355659852,61.74,171.48,171.39,61.74]
[1747355660055,61.7,171.47,171.39,61.74]
[1747355660448,61.7,171.47,171.42,5.8322]
[1747355660653,61.7,171.47,171.39,61.74]
[1747355662353,61.6,171.46,171.39,61.74]
[1747355662852,61.6,171.46,171.43,5.8318]
[1747355663052,61.58,171.47,171.39,61.74]
[1747355663853,5.8316,171.44,171.38,5.8336]
[1747355664043,61.62,171.43,171.36,61.74]
[1747355664247,61.62,171.42,171.36,61.74]